[Event "Skalica SCHAEFFLER Open 2019"]
[Site "Skalica"]
[Date "2019.08.25"]
[Round "1.9"]
[White "Sefcik, Oliver"]
[Black "Hrdlicka, Martin"]
[Result "0-1"]
[ECO "C50"]
[WhiteElo "1198"]
[BlackElo "1661"]
[Annotator "NA"]
[PlyCount "62"]
[EventDate "2019.08.25"]
[EventType "swiss"]
[EventCountry "SVK"]
[SourceTitle "playchess.com"]
[Source "ChessBase"]
[SourceQuality "1"]
[TimeControl "40/5400+30:1800+30"]

1. e4 {[%emt 0:00:00]} e5 {[%emt 0:00:00]} 2. Nf3 {[%emt 0:00:00]} Nc6 {[%emt 0:00:16]} 3. Bc4 {[%emt 0:00:21]} Bc5 {[%emt 0:00:08]} 4. O-O {[%emt 0:00:53]} Nf6 {[%emt 0:00:08]} 5. d3 {[%emt 0:00:00]} O-O {[%emt 0:00:07]} 6. Bg5 {[%emt 0:00:04]} d6 {[%emt 0:00:19]} 7. h3 {[%emt 0:01:01]} Be6 {[%emt 0:00:12]} 8. Bxe6 {[%emt 0:00:00]} fxe6 {[%emt 0:00:08]} 9. Re1 {[%emt 0:01:46]} Qd7 {[%emt 0:05:35]} 10. c3 {[%emt 0:00:38]} Bb6 {[%emt 0:00:30]} 11. d4 {[%emt 0:07:01]} Rad8 {[%emt 0:11:07]} 12. Qd3 {[%emt 0:02:14]} d5 {[%emt 0:20:31]} 13. dxe5 {[%emt 0:15:20]} Nxe4 {[%emt 0:00:20]} 14. Be3 {[%emt 0:04:38]} Nc5 {[%emt 0:27:52]} 15. Qd1 {[%emt 0:04:16]} Qf7 {[%emt 0:02:09]} 16. b4 {[%emt 0:02:59]} Ne4 {[%emt 0:00:29]} 17. Bxb6 {[%emt 0:00:30]} axb6 {[%emt 0:00:11]} 18. Re2 {[%emt 0:04:14]} Qf4 {[%emt 0:00:50]} 19. Qe1 {[%emt 0:02:37]} Rd7 {[%emt 0:06:57]} 20. Nfd2 {[%emt 0:07:40]} Nxe5 {[%emt 0:07:05]} 21. Nxe4 {[%emt 0:00:21]} dxe4 {[%emt 0:00:41]} 22. Rxe4 {[%emt 0:02:18]} Rd1 {[%emt 0:02:51]} 23. Qxd1 {[%emt 0:00:30]} Qxe4 {[%emt 0:00:30]} 24. Nd2 {[%emt 0:00:30]} Qf5 {[%emt 0:00:30]} 25. Qe2 {[%emt 0:01:20]} Nd3 {[%emt 0:01:55]} 26. Rd1 {[%emt 0:02:44]} Qg6 {[%emt 0:04:47]} 27. f3 {[%emt 0:04:05]} Nf4 {[%emt 0:00:38]} 28. Qf1 {[%emt 0:00:35]} Nxh3+ {[%emt 0:01:29]} 29. Kh1 {[%emt 0:00:48]} Nf4 {[%emt 0:00:20]} 30. Qg1 {[%emt 0:02:07]} Rf5 {[%emt 0:02:01]} 31. g3 {[%emt 0:01:01]} Rh5+ {[%emt 0:00:27]} 0-1

[Event "Skalica SCHAEFFLER Open 2019"]
[Site "Skalica"]
[Date "2019.08.25"]
[Round "1.10"]
[White "Vozarova, Adriana"]
[Black "Kaufmanova, Karin"]
[Result "1-0"]
[ECO "C34"]
[WhiteElo "1647"]
[BlackElo "1183"]
[Annotator "NA"]
[PlyCount "70"]
[EventDate "2019.08.25"]
[EventType "swiss"]
[EventCountry "SVK"]
[SourceTitle "playchess.com"]
[Source "ChessBase"]
[SourceQuality "1"]
[TimeControl "40/5400+30:1800+30"]

1. e4 {[%emt 0:00:00]} e5 {[%emt 0:00:15]} 2. f4 {[%emt 0:00:00]} exf4 {[%emt 0:00:30]} 3. Nf3 {[%emt 0:00:00]} Nf6 {[%emt 0:00:15]} 4. Nc3 {[%emt 0:00:10]} Bb4 {[%emt 0:00:21]} 5. e5 {[%emt 0:02:07]} Ng4 {[%emt 0:01:26]} 6. Nd5 {[%emt 0:05:27]} Bc5 {[%emt 0:01:20]} 7. d4 {[%emt 0:00:49]} Bb6 {[%emt 0:05:02]} 8. Bxf4 {[%emt 0:02:02]} d6 {[%emt 0:01:50]} 9. exd6 {[%emt 0:06:02]} cxd6 {[%emt 0:00:21]} 10. Bb5+ {[%emt 0:00:36]} Nc6 {[%emt 0:01:08]} 11. O-O {[%emt 0:06:51]} O-O {[%emt 0:00:15]} 12. c3 {[%emt 0:01:03]} Be6 {[%emt 0:02:01]} 13. Ne3 {[%emt 0:06:24]} a6 {[%emt 0:01:07]} 14. Ba4 {[%emt 0:01:44]} Nxe3 {[%emt 0:00:35]} 15. Bxe3 {[%emt 0:00:11]} Bc4 {[%emt 0:00:44]} 16. Re1 {[%emt 0:01:06]} Bd5 {[%emt 0:01:36]} 17. Bc2 {[%emt 0:01:14]} Bxf3 {[%emt 0:00:33]} 18. Qxf3 {[%emt 0:00:09]} Qh4 {[%emt 0:01:04]} 19. Bd2 {[%emt 0:05:52]} Nxd4 {[%emt 0:11:58]} 20. cxd4 {[%emt 0:00:40]} Bxd4+ {[%emt 0:00:12]} 21. Kh1 {[%emt 0:01:55]} Be5 {[%emt 0:01:53]} 22. h3 {[%emt 0:02:52]} Rfe8 {[%emt 0:01:31]} 23. Re4 {[%emt 0:03:22]} Qd8 {[%emt 0:01:11]} 24. Rf1 {[%emt 0:00:46]} f6 {[%emt 0:02:51]} 25. Rh4 {[%emt 0:02:36]} h6 {[%emt 0:00:41]} 26. Qf5 {[%emt 0:01:48]} Re7 {[%emt 0:01:20]} 27. Qh7+ {[%emt 0:02:05]} Kf7 {[%emt 0:00:26]} 28. Bxh6 {[%emt 0:02:08]} Kf8 {[%emt 0:01:06]} 29. Bg6 {[%emt 0:02:24]} Rf7 {[%emt 0:01:05]} 30. Bxf7 {[%emt 0:00:00]} Kxf7 {[%emt 0:00:12]} 31. Qxg7+ {[%emt 0:00:18]} Ke6 {[%emt 0:00:26]} 32. Qg4+ {[%emt 0:00:24]} Ke7 {[%emt 0:00:26]} 33. Bd2 {[%emt 0:00:42]} Qd7 {[%emt 0:00:39]} 34. Rh7+ {[%emt 0:00:10]} Kf8 {[%emt 0:00:29]} 35. Qxd7 {[%emt 0:00:22]} Kg8 {[%emt 0:00:39]} 1-0

[Event "Skalica SCHAEFFLER Open 2019"]
[Site "Skalica"]
[Date "2019.08.26"]
[Round "2.1"]
[White "Skreko, Igor"]
[Black "Benci, Rudolf"]
[Result "*"]
[ECO "A03"]
[WhiteElo "1725"]
[BlackElo "1635"]
[Annotator "NA RC"]
[PlyCount "116"]
[EventDate "2019.08.25"]
[EventType "swiss"]
[EventCountry "SVK"]
[SourceTitle "playchess.com"]
[Source "ChessBase"]
[SourceQuality "1"]
[TimeControl "40/5400+30:1800+30"]

1. f4 {[%emt 0:00:00]} d5 {[%emt 0:03:53]} 2. Nf3 {[%emt 0:00:00]} Nf6 {[%emt 0:01:30]} 3. g3 {[%emt 0:00:49]} e6 {[%emt 0:01:41]} 4. Bg2 {[%emt 0:00:31]} c5 {[%emt 0:00:31]} 5. O-O {[%emt 0:00:57]} Nc6 {[%emt 0:00:06]} 6. e3 {[%emt 0:00:33]} Be7 {[%emt 0:03:47]} 7. b3 {[%emt 0:00:29]} O-O {[%emt 0:00:20]} 8. Bb2 {[%emt 0:00:03]} b6 {[%emt 0:01:06]} 9. d3 {[%emt 0:02:00]} Bb7 {[%emt 0:01:11]} 10. Nbd2 {[%emt 0:00:40]} Qc7 {[%emt 0:09:49]} 11. Qe2 {[%emt 0:01:05]} a5 {[%emt 0:09:42]} 12. a4 {[%emt 0:02:18]} Na7 {[%emt 0:05:43]} 13. Ne5 {[%emt 0:03:40]} Nc8 {[%emt 0:04:42]} 14. g4 {[%emt 0:02:13]} Nd6 {[%emt 0:01:56]} 15. g5 {[%emt 0:03:32]} Nd7 {[%emt 0:02:40]} 16. Qh5 {[%emt 0:04:18]} f6 {[%emt 0:12:50]} 17. Nxd7 {[%emt 0:05:05]} Qxd7 {[%emt 0:00:24]} 18. gxf6 {[%emt 0:21:48]} Bxf6 {[%emt 0:00:21]} 19. Bxf6 {[%emt 0:01:23]} Rxf6 {[%emt 0:00:48]} 20. Nf3 {[%emt 0:03:42]} Nf7 {[%emt 0:04:57]} 21. Ng5 {[%emt 0:04:48]} Nxg5 {[%emt 0:00:30]} 22. fxg5 {[%emt 0:00:35]} Rxf1+ {[%emt 0:01:37]} 23. Rxf1 {[%emt 0:00:08]} Re8 {[%emt 0:01:42]} 24. Bh3 {[%emt 0:03:39]} Re7 {[%emt 0:01:55]} 25. g6 {[%emt 0:06:48]} hxg6 {[%emt 0:02:19]} 26. Qxg6 {[%emt 0:00:11]} Bc8 {[%emt 0:00:22]} 27. Qg3 {[%emt 0:01:14]} Rf7 {[%emt 0:00:35]} 28. Rxf7 {[%emt 0:00:42]} Kxf7 {[%emt 0:00:07]} 29. Qf4+ {[%emt 0:01:03]} Kg8 {[%emt 0:01:37]} 30. Qb8 {[%emt 0:00:44]} Qc6 {[%emt 0:00:54]} 31. Qe5 {[%emt 0:01:39]} c4 {[%emt 0:01:32]} 32. Qc3 {[%emt 0:03:09]} Qc5 {[%emt 0:02:00]} 33. dxc4 {[%emt 0:01:51]} dxc4 {[%emt 0:00:11]} 34. bxc4 {[%emt 0:00:44]} Qg5+ {[%emt 0:00:22]} 35. Bg2 {[%emt 0:00:53]} Bb7 {[%emt 0:01:28]} 36. Qd2 {[%emt 0:00:31]} Bxg2 {[%emt 0:00:58]} 37. Qxg2 {[%emt 0:00:04]} Qxe3+ {[%emt 0:00:16]} 38. Qf2 {[%emt 0:00:14]} Qxf2+ {[%emt 0:00:44]} 39. Kxf2 {[%emt 0:00:05]} Kf7 {[%emt 0:00:58]} 40. Kf3 {[%emt 0:00:57]} Ke7 {[%emt 0:04:05]} 41. Ke4 {[%emt 0:33:23]} Kd6 {[%emt 0:32:32]} 42. c3 {[%emt 0:08:13]} e5 {[%emt 0:03:50]} 43. h4 {[%emt 0:05:08]} g6 {[%emt 0:02:45]} 44. Kd3 {[%emt 0:00:50]} Ke6 {[%emt 0:02:00]} 45. Ke4 {[%emt 0:00:02]} Kd6 {[%emt 0:08:40]} 46. Kd3 {[%emt 0:00:33]} Kc5 {[%emt 0:00:00]} 47. Ke4 {[%emt 0:00:00]} Kxc4 {[%emt 0:00:00]} 48. Kxe5 {[%emt 0:00:00]} b5 {[%emt 0:00:00]} 49. axb5 {[%emt 0:00:00]} Kxb5 {[%emt 0:00:00]} 50. Kd5 {[%emt 0:00:00]} a4 {[%emt 0:00:00]} 51. c4+ {[%emt 0:00:00]} Kb6 {[%emt 0:00:00]} 52. Kd6 {[%emt 0:00:00]} a3 {[%emt 0:00:00]} 53. c5+ {[%emt 0:00:00]} Kb5 {[%emt 0:00:00]} 54. c6 {[%emt 0:00:00]} a2 {[%emt 0:00:00]} 55. c7 {[%emt 0:00:00]} a1=Q {[%emt 0:00:00]} 56. c8=Q {[%emt 0:00:00]} Qd4+ {[%emt 0:00:00]} 57. Kc7 {[%emt 0:00:00]} Qb6+ {[%emt 0:02:14]} 58. Kd7 {[%emt 0:00:00]} Qd4+ {[%emt 0:00:13]} *

[Event "Skalica SCHAEFFLER Open 2019"]
[Site "Skalica"]
[Date "2019.08.26"]
[Round "2.2"]
[White "Visvader, Kristof"]
[Black "Kastler, Peter"]
[Result "0-1"]
[ECO "C02"]
[WhiteElo "1389"]
[BlackElo "1724"]
[Annotator "NA RC"]
[PlyCount "47"]
[EventDate "2019.08.25"]
[EventType "swiss"]
[EventCountry "SVK"]
[SourceTitle "playchess.com"]
[Source "ChessBase"]
[SourceQuality "1"]
[TimeControl "40/5400+30:1800+30"]

1. e4 {[%emt 0:00:00]} e6 {[%emt 0:01:10]} 2. d4 {[%emt 0:00:00]} d5 {[%emt 0:00:06]} 3. e5 {[%emt 0:00:00]} c5 {[%emt 0:00:11]} 4. c3 {[%emt 0:00:05]} Qb6 {[%emt 0:01:18]} 5. Nf3 {[%emt 0:01:07]} Nc6 {[%emt 0:00:07]} 6. a3 {[%emt 0:02:51]} Bd7 {[%emt 0:02:35]} 7. b4 {[%emt 0:02:12]} cxd4 {[%emt 0:03:49]} 8. cxd4 {[%emt 0:00:15]} a6 {[%emt 0:03:11]} 9. Bb2 {[%emt 0:03:30]} Na7 {[%emt 0:06:50]} 10. Bc3 {[%emt 0:13:50]} Nb5 {[%emt 0:01:48]} 11. Bxb5 {[%emt 0:01:15]} Bxb5 {[%emt 0:00:49]} 12. Nfd2 {[%emt 0:02:02]} Rc8 {[%emt 0:00:50]} 13. Nb3 {[%emt 0:01:40]} Ba4 {[%emt 0:01:02]} 14. O-O {[%emt 0:01:51]} Qb5 {[%emt 0:02:36]} 15. Ra2 {[%emt 0:02:32]} Ne7 {[%emt 0:02:40]} 16. Rb2 {[%emt 0:05:11]} Nf5 {[%emt 0:00:55]} 17. Qd2 {[%emt 0:02:03]} Bxb3 {[%emt 0:02:52]} 18. Rxb3 {[%emt 0:00:23]} Be7 {[%emt 0:02:00]} 19. Rd1 {[%emt 0:02:53]} O-O {[%emt 0:01:19]} 20. Qd3 {[%emt 0:02:13]} Qa4 {[%emt 0:05:03]} 21. Rb2 {[%emt 0:02:02]} Rc4 {[%emt 0:00:41]} 22. Qc2 {[%emt 0:03:32]} Qc6 {[%emt 0:01:52]} 23. Qd2 {[%emt 0:10:03]} Rc8 {[%emt 0:01:12]} 24. Rb3 {[%emt 0:00:53]} 0-1

[Event "Skalica SCHAEFFLER Open 2019"]
[Site "Skalica"]
[Date "2019.08.26"]
[Round "2.3"]
[White "Vach, Jozef"]
[Black "Delgerdalai, Bayarjavkhlan"]
[Result "1/2-1/2"]
[ECO "D43"]
[WhiteElo "1722"]
[BlackElo "1460"]
[Annotator "NA RC"]
[PlyCount "57"]
[EventDate "2019.08.25"]
[EventType "swiss"]
[EventCountry "SVK"]
[SourceTitle "playchess.com"]
[Source "ChessBase"]
[SourceQuality "1"]
[TimeControl "40/5400+30:1800+30"]

1. d4 {[%emt 0:00:00]} d5 {[%emt 0:00:00]} 2. c4 {[%emt 0:00:14]} e6 {[%emt 0:00:00]} 3. Nc3 {[%emt 0:00:08]} Nf6 {[%emt 0:00:10]} 4. Nf3 {[%emt 0:00:22]} c6 {[%emt 0:00:33]} 5. a4 {[%emt 0:00:35]} Bd6 {[%emt 0:01:24]} 6. e3 {[%emt 0:02:11]} Nbd7 {[%emt 0:00:59]} 7. c5 {[%emt 0:01:20]} Bc7 {[%emt 0:00:40]} 8. b4 {[%emt 0:00:34]} O-O {[%emt 0:01:33]} 9. Bd3 {[%emt 0:01:54]} e5 {[%emt 0:00:56]} 10. dxe5 {[%emt 0:01:01]} Nxe5 {[%emt 0:00:29]} 11. Be2 {[%emt 0:01:28]} Bg4 {[%emt 0:02:33]} 12. O-O {[%emt 0:02:17]} Bxf3 {[%emt 0:02:25]} 13. Bxf3 {[%emt 0:00:22]} Nxf3+ {[%emt 0:00:27]} 14. Qxf3 {[%emt 0:00:37]} Be5 {[%emt 0:00:50]} 15. Bb2 {[%emt 0:02:50]} Qc7 {[%emt 0:03:09]} 16. h3 {[%emt 0:01:45]} Ne4 {[%emt 0:02:00]} 17. Rfc1 {[%emt 0:03:25]} Nd2 {[%emt 0:03:43]} 18. Qd1 {[%emt 0:00:45]} Nc4 {[%emt 0:00:46]} 19. Rab1 {[%emt 0:00:52]} Rad8 {[%emt 0:03:40]} 20. Ba1 {[%emt 0:02:08]} Rfe8 {[%emt 0:03:29]} 21. Qe2 {[%emt 0:02:13]} Re6 {[%emt 0:02:58]} 22. Nd1 {[%emt 0:02:17]} Rg6 {[%emt 0:01:45]} 23. Bxe5 {[%emt 0:05:14]} Nxe5 {[%emt 0:02:02]} 24. Nb2 {[%emt 0:03:52]} Nd7 {[%emt 0:04:00]} 25. Rd1 {[%emt 0:02:28]} Nf6 {[%emt 0:01:20]} 26. Rd4 {[%emt 0:01:19]} Ne4 {[%emt 0:00:37]} 27. Rc1 {[%emt 0:01:24]} Qc8 {[%emt 0:01:47]} 28. Kh2 {[%emt 0:02:47]} Qc7+ {[%emt 0:03:05]} 29. Kg1 {[%emt 0:01:13]} 1/2-1/2

[Event "Skalica SCHAEFFLER Open 2019"]
[Site "Skalica"]
[Date "2019.08.26"]
[Round "2.5"]
[White "Vlcek, Antonin"]
[Black "Gres, Michal"]
[Result "1-0"]
[ECO "C42"]
[WhiteElo "1686"]
[BlackElo "1410"]
[Annotator "NA RC"]
[PlyCount "57"]
[EventDate "2019.08.25"]
[EventType "swiss"]
[EventCountry "SVK"]
[SourceTitle "playchess.com"]
[Source "ChessBase"]
[SourceQuality "1"]
[TimeControl "40/5400+30:1800+30"]

1. e4 {[%emt 0:00:00]} e5 {[%emt 0:00:00]} 2. Nf3 {[%emt 0:00:00]} Nf6 {[%emt 0:00:00]} 3. Nxe5 {[%emt 0:00:08]} d6 {[%emt 0:00:07]} 4. Nf3 {[%emt 0:00:42]} Nxe4 {[%emt 0:00:17]} 5. Qe2 {[%emt 0:02:38]} Qe7 {[%emt 0:01:24]} 6. d3 {[%emt 0:01:42]} Nf6 {[%emt 0:02:21]} 7. Nc3 {[%emt 0:01:39]} Nc6 {[%emt 0:03:42]} 8. Bg5 {[%emt 0:01:03]} Be6 {[%emt 0:02:43]} 9. O-O-O {[%emt 0:04:43]} d5 {[%emt 0:09:48]} 10. d4 {[%emt 0:00:41]} O-O-O {[%emt 0:07:07]} 11. Qb5 {[%emt 0:07:12]} h6 {[%emt 0:05:44]} 12. Bh4 {[%emt 0:06:28]} g5 {[%emt 0:08:03]} 13. Bg3 {[%emt 0:00:09]} Bg7 {[%emt 0:02:21]} 14. Ne5 {[%emt 0:04:21]} Nxe5 {[%emt 0:06:59]} 15. Bxe5 {[%emt 0:05:47]} Ne4 {[%emt 0:14:03]} 16. Nxe4 {[%emt 0:10:55]} Bxe5 {[%emt 0:00:31]} 17. Nc5 {[%emt 0:00:54]} Bf4+ {[%emt 0:01:08]} 18. Kb1 {[%emt 0:00:18]} c6 {[%emt 0:01:23]} 19. Qa4 {[%emt 0:00:45]} a6 {[%emt 0:03:24]} 20. Bxa6 {[%emt 0:04:50]} bxa6 {[%emt 0:04:22]} 21. Qxa6+ {[%emt 0:00:34]} Kc7 {[%emt 0:01:43]} 22. g3 {[%emt 0:15:30]} Bg4 {[%emt 0:05:19]} 23. Rde1 {[%emt 0:03:24]} Be6 {[%emt 0:08:21]} 24. gxf4 {[%emt 0:00:27]} Rb8 {[%emt 0:00:40]} 25. f5 {[%emt 0:01:30]} Ra8 {[%emt 0:03:44]} 26. Qb7+ {[%emt 0:00:54]} Kd6 {[%emt 0:00:28]} 27. Qxe7+ {[%emt 0:00:16]} Kxe7 {[%emt 0:00:13]} 28. fxe6 {[%emt 0:00:06]} f6 {[%emt 0:01:21]} 29. Re3 {[%emt 0:00:54]} 1-0

[Event "Skalica SCHAEFFLER Open 2019"]
[Site "Skalica"]
[Date "2019.08.26"]
[Round "2.6"]
[White "Tutkova, Ludmila"]
[Black "Podskubka, Ondrej"]
[Result "0-1"]
[ECO "B22"]
[WhiteElo "1085"]
[BlackElo "1684"]
[Annotator "NA RC"]
[PlyCount "72"]
[EventDate "2019.08.25"]
[EventType "swiss"]
[EventCountry "SVK"]
[SourceTitle "playchess.com"]
[Source "ChessBase"]
[SourceQuality "1"]
[TimeControl "40/5400+30:1800+30"]

1. e4 {[%emt 0:00:00]} c5 {[%emt 0:00:06]} 2. Bc4 {[%emt 0:00:58]} Nc6 {[%emt 0:00:15]} 3. Nf3 {[%emt 0:00:43]} g6 {[%emt 0:03:48]} 4. c3 {[%emt 0:01:53]} Bg7 {[%emt 0:01:22]} 5. d4 {[%emt 0:02:41]} cxd4 {[%emt 0:00:07]} 6. cxd4 {[%emt 0:00:09]} d6 {[%emt 0:00:12]} 7. Nc3 {[%emt 0:03:25]} Nf6 {[%emt 0:00:12]} 8. e5 {[%emt 0:01:34]} dxe5 {[%emt 0:01:04]} 9. dxe5 {[%emt 0:00:42]} Qxd1+ {[%emt 0:00:49]} 10. Kxd1 {[%emt 0:02:24]} Ng4 {[%emt 0:00:47]} 11. Ne4 {[%emt 0:04:02]} Ngxe5 {[%emt 0:01:22]} 12. Nxe5 {[%emt 0:02:07]} Bxe5 {[%emt 0:00:43]} 13. Ng5 {[%emt 0:01:10]} O-O {[%emt 0:02:39]} 14. f4 {[%emt 0:08:20]} Bg4+ {[%emt 0:08:35]} 15. Ke1 {[%emt 0:00:58]} Bg7 {[%emt 0:07:46]} 16. h3 {[%emt 0:00:35]} Bd7 {[%emt 0:00:32]} 17. g4 {[%emt 0:00:24]} Nd4 {[%emt 0:00:30]} 18. Kf2 {[%emt 0:02:30]} Bc6 {[%emt 0:01:22]} 19. Rh2 {[%emt 0:01:20]} e6 {[%emt 0:04:28]} 20. h4 {[%emt 0:00:37]} h6 {[%emt 0:00:53]} 21. Nh3 {[%emt 0:01:29]} Nf3 {[%emt 0:00:27]} 22. Rh1 {[%emt 0:02:03]} Ne5 {[%emt 0:01:03]} 23. Rg1 {[%emt 0:00:54]} Nxc4 {[%emt 0:02:23]} 24. Kg3 {[%emt 0:02:13]} Rad8 {[%emt 0:00:53]} 25. h5 {[%emt 0:00:42]} Rd3+ {[%emt 0:04:39]} 26. Kh2 {[%emt 0:00:10]} Nxb2 {[%emt 0:01:00]} 27. Rb1 {[%emt 0:00:22]} Nc4 {[%emt 0:00:45]} 28. g5 {[%emt 0:01:20]} Nd2 {[%emt 0:02:02]} 29. Bxd2 {[%emt 0:01:38]} Rxd2+ {[%emt 0:00:07]} 30. Kg3 {[%emt 0:00:18]} Rfd8 {[%emt 0:01:10]} 31. hxg6 {[%emt 0:00:38]} R8d3+ {[%emt 0:04:22]} 32. Kh4 {[%emt 0:00:21]} Rh2 {[%emt 0:02:33]} 33. gxf7+ {[%emt 0:01:06]} Kxf7 {[%emt 0:00:21]} 34. g6+ {[%emt 0:00:42]} Kf8 {[%emt 0:01:31]} 35. Rg3 {[%emt 0:00:50]} Bf6+ {[%emt 0:00:39]} 36. Kg4 {[%emt 0:00:13]} h5+ {[%emt 0:01:04]} 0-1

[Event "Skalica SCHAEFFLER Open 2019"]
[Site "Skalica"]
[Date "2019.08.26"]
[Round "2.7"]
[White "Krakovsky Peter"]
[Black "Benci, Jozef"]
[Result "1-0"]
[ECO "A29"]
[WhiteElo "1000"]
[BlackElo "1868"]
[Annotator "NA"]
[PlyCount "145"]
[EventDate "2019.08.25"]
[EventType "swiss"]
[EventCountry "SVK"]
[SourceTitle "playchess.com"]
[Source "ChessBase"]
[SourceQuality "1"]
[TimeControl "40/5400+30:1800+30"]

1. c4 {[%emt 0:00:11]} e5 {[%emt 0:00:00]} 2. Nc3 {[%emt 0:00:13]} Nf6 {[%emt 0:00:00]} 3. g3 {[%emt 0:00:13]} Bc5 {[%emt 0:01:31]} 4. Bg2 {[%emt 0:00:39]} Nc6 {[%emt 0:08:07]} 5. d3 {[%emt 0:02:50]} O-O {[%emt 0:01:54]} 6. Nf3 {[%emt 0:00:10]} d6 {[%emt 0:01:22]} 7. O-O {[%emt 0:00:12]} Bg4 {[%emt 0:04:35]} 8. Bg5 {[%emt 0:01:26]} h6 {[%emt 0:02:15]} 9. Bxf6 {[%emt 0:05:17]} Qxf6 {[%emt 0:00:56]} 10. Ne4 {[%emt 0:00:57]} Qe6 {[%emt 0:01:27]} 11. Nxc5 {[%emt 0:02:56]} dxc5 {[%emt 0:00:26]} 12. Qc2 {[%emt 0:00:49]} Ne7 {[%emt 0:13:16]} 13. Rfe1 {[%emt 0:05:02]} Ng6 {[%emt 0:03:48]} 14. Nd2 {[%emt 0:02:58]} c6 {[%emt 0:13:07]} 15. Ne4 {[%emt 0:06:55]} b6 {[%emt 0:01:45]} 16. Qa4 {[%emt 0:05:12]} Ne7 {[%emt 0:09:20]} 17. f3 {[%emt 0:02:08]} Bf5 {[%emt 0:03:08]} 18. Rab1 {[%emt 0:06:38]} a5 {[%emt 0:12:40]} 19. Nc3 {[%emt 0:09:38]} Rfb8 {[%emt 0:08:35]} 20. e4 {[%emt 0:03:28]} Bg6 {[%emt 0:00:49]} 21. Qc2 {[%emt 0:00:28]} b5 {[%emt 0:01:48]} 22. cxb5 {[%emt 0:01:28]} cxb5 {[%emt 0:01:01]} 23. b3 {[%emt 0:02:09]} c4 {[%emt 0:01:18]} 24. dxc4 {[%emt 0:00:58]} bxc4 {[%emt 0:00:15]} 25. Red1 {[%emt 0:03:05]} f5 {[%emt 0:02:09]} 26. Nd5 {[%emt 0:01:57]} Nxd5 {[%emt 0:00:37]} 27. Rxd5 {[%emt 0:00:36]} cxb3 {[%emt 0:00:46]} 28. Rxb3 {[%emt 0:00:08]} Rxb3 {[%emt 0:00:22]} 29. Qxb3 {[%emt 0:00:21]} Bf7 {[%emt 0:00:30]} 30. Qb7 {[%emt 0:03:52]} Qc8 {[%emt 0:00:46]} 31. Qxc8+ {[%emt 0:01:26]} Rxc8 {[%emt 0:00:02]} 32. Rxa5 {[%emt 0:00:17]} Rc1+ {[%emt 0:00:25]} 33. Kf2 {[%emt 0:00:10]} Rc2+ {[%emt 0:00:17]} 34. Kf1 {[%emt 0:00:31]} Rxa2 {[%emt 0:00:25]} 35. Rxa2 {[%emt 0:01:28]} Bxa2 {[%emt 0:00:07]} 36. exf5 {[%emt 0:00:05]} Bc4+ {[%emt 0:00:30]} 37. Kf2 {[%emt 0:00:09]} Kf7 {[%emt 0:00:18]} 38. Ke3 {[%emt 0:00:08]} Bd5 {[%emt 0:01:01]} 39. Bf1 {[%emt 0:00:28]} Kf6 {[%emt 0:00:00]} 40. Bd3 {[%emt 0:01:45]} Ke7 {[%emt 0:00:40]} 41. Be4 {[%emt 0:30:30]} Bc4 {[%emt 0:30:52]} 42. h4 {[%emt 0:00:45]} h5 {[%emt 0:01:05]} 43. g4 {[%emt 0:01:14]} Bf7 {[%emt 0:00:33]} 44. g5 {[%emt 0:01:29]} Be8 {[%emt 0:01:13]} 45. Kd3 {[%emt 0:01:59]} Kd6 {[%emt 0:00:33]} 46. Kc4 {[%emt 0:00:22]} Bf7+ {[%emt 0:00:54]} 47. Kb5 {[%emt 0:00:25]} Be8+ {[%emt 0:00:43]} 48. Kb6 {[%emt 0:00:24]} Ba4 {[%emt 0:00:32]} 49. Ka5 {[%emt 0:00:25]} Be8 {[%emt 0:00:26]} 50. Kb4 {[%emt 0:00:03]} Bf7 {[%emt 0:00:38]} 51. Kc3 {[%emt 0:00:04]} Kc5 {[%emt 0:00:44]} 52. Kd3 {[%emt 0:00:06]} Bc4+ {[%emt 0:00:26]} 53. Ke3 {[%emt 0:00:04]} Ba2 {[%emt 0:01:10]} 54. f4 {[%emt 0:00:08]} exf4+ {[%emt 0:00:43]} 55. Kxf4 {[%emt 0:00:02]} Kd6 {[%emt 0:00:13]} 56. Bf3 {[%emt 0:00:09]} Bf7 {[%emt 0:00:42]} 57. g6 {[%emt 0:00:25]} Ba2 {[%emt 0:00:29]} 58. Bxh5 {[%emt 0:00:13]} Ke7 {[%emt 0:00:21]} 59. Kg5 {[%emt 0:00:17]} Bg8 {[%emt 0:00:16]} 60. Bf3 {[%emt 0:00:20]} Ba2 {[%emt 0:00:13]} 61. h5 {[%emt 0:00:02]} Bb1 {[%emt 0:00:30]} 62. Bd5 {[%emt 0:00:11]} Kd6 {[%emt 0:00:23]} 63. Be6 {[%emt 0:00:54]} Ke5 {[%emt 0:00:18]} 64. h6 {[%emt 0:00:19]} gxh6+ {[%emt 0:00:45]} 65. Kxh6 {[%emt 0:00:06]} Bxf5 {[%emt 0:02:19]} 66. Bxf5 {[%emt 0:00:16]} Kf6 {[%emt 0:00:04]} 67. g7 {[%emt 0:00:26]} Kxf5 {[%emt 0:00:31]} 68. g8=Q {[%emt 0:00:04]} Kf6 {[%emt 0:00:19]} 69. Qg4 {[%emt 0:00:21]} Ke5 {[%emt 0:00:17]} 70. Kg6 {[%emt 0:00:25]} Kd5 {[%emt 0:00:42]} 71. Qe2 {[%emt 0:00:20]} Kd4 {[%emt 0:00:00]} 72. Kf5 {[%emt 0:00:10]} Kd5 {[%emt 0:00:29]} 73. Qd3+ {[%emt 0:00:18]} 1-0

[Event "Skalica SCHAEFFLER Open 2019"]
[Site "Skalica"]
[Date "2019.08.26"]
[Round "2.8"]
[White "Fizerova, Lucie"]
[Black "Polozov Yaroslavl"]
[Result "1-0"]
[ECO "B15"]
[WhiteElo "1563"]
[BlackElo "1000"]
[Annotator "NA RC"]
[PlyCount "67"]
[EventDate "2019.08.25"]
[EventType "swiss"]
[EventCountry "SVK"]
[SourceTitle "playchess.com"]
[Source "ChessBase"]
[SourceQuality "1"]
[TimeControl "40/5400+30:1800+30"]

1. e4 {[%emt 0:00:00]} c6 {[%emt 0:00:00]} 2. d4 {[%emt 0:00:00]} d5 {[%emt 0:00:00]} 3. Nd2 {[%emt 0:00:00]} dxe4 {[%emt 0:00:00]} 4. Nxe4 {[%emt 0:00:05]} Nf6 {[%emt 0:00:11]} 5. Nxf6+ {[%emt 0:01:31]} exf6 {[%emt 0:00:07]} 6. Nf3 {[%emt 0:00:23]} Bd6 {[%emt 0:00:13]} 7. Bd3 {[%emt 0:01:25]} O-O {[%emt 0:00:13]} 8. Be3 {[%emt 0:02:37]} Be6 {[%emt 0:01:16]} 9. h4 {[%emt 0:02:34]} h5 {[%emt 0:12:42]} 10. Nh2 {[%emt 0:04:05]} Qa5+ {[%emt 0:11:28]} 11. c3 {[%emt 0:03:28]} Na6 {[%emt 0:05:25]} 12. Be2 {[%emt 0:07:42]} g6 {[%emt 0:03:12]} 13. g4 {[%emt 0:03:37]} hxg4 {[%emt 0:01:47]} 14. Nxg4 {[%emt 0:02:56]} Kg7 {[%emt 0:01:04]} 15. Bh6+ {[%emt 0:04:42]} Kh7 {[%emt 0:01:30]} 16. Bxf8 {[%emt 0:05:09]} Rxf8 {[%emt 0:01:09]} 17. Nxf6+ {[%emt 0:03:13]} Kg7 {[%emt 0:00:40]} 18. d5 {[%emt 0:05:50]} Kxf6 {[%emt 0:03:19]} 19. dxe6 {[%emt 0:00:42]} Kxe6 {[%emt 0:00:59]} 20. Bc4+ {[%emt 0:05:05]} Kd7 {[%emt 0:00:28]} 21. Qd2 {[%emt 0:02:41]} Qe5+ {[%emt 0:01:51]} 22. Qe3 {[%emt 0:02:37]} Qf5 {[%emt 0:02:30]} 23. Kf1 {[%emt 0:03:27]} Kc7 {[%emt 0:01:55]} 24. Rd1 {[%emt 0:03:19]} Rd8 {[%emt 0:10:56]} 25. Bxa6 {[%emt 0:15:21]} bxa6 {[%emt 0:04:19]} 26. Qxa7+ {[%emt 0:00:23]} Kc8 {[%emt 0:00:15]} 27. Qxa6+ {[%emt 0:00:38]} Kc7 {[%emt 0:00:44]} 28. Qe2 {[%emt 0:01:35]} Rd7 {[%emt 0:03:55]} 29. h5 {[%emt 0:05:55]} Re7 {[%emt 0:01:31]} 30. Qd3 {[%emt 0:01:29]} Qe6 {[%emt 0:02:57]} 31. h6 {[%emt 0:01:09]} Qf6 {[%emt 0:00:58]} 32. Qxd6+ {[%emt 0:00:55]} Qxd6 {[%emt 0:00:21]} 33. Rxd6 {[%emt 0:00:02]} Kxd6 {[%emt 0:00:55]} 34. h7 {[%emt 0:00:12]} 1-0